[Event "Titled Tuesday Blitz August 1 Early 2023"]
[White "Lopez Del Alamo, Antonio"]
[Black "Lewicki, Miroslaw"]
[WhiteFideId "2227339"]
[BlackFideId "1113380"]
[WhiteElo "2362"]
[BlackElo "2644"]
[Result "0-1"]
[Round "1"]
[TimeControl "180+1"]
[Date "2023.08.01"]
[WhiteClock "0:00:28"]
[BlackClock "0:00:08"]
[Board "143"]

1. e4 {[%clk 0:02:59]}  c5 {[%clk 0:03:00]} 2. Nf3 {[%clk 0:02:57]}  d6 {[%clk 0:02:57]} 3. d4 {[%clk 0:02:54]}  cxd4 {[%clk 0:02:58]} 4. Nxd4 {[%clk 0:02:50]}  Nf6 {[%clk 0:02:58]} 5. Nc3 {[%clk 0:02:49]}  a6 {[%clk 0:02:58]} 6. Be2 {[%clk 0:02:49]}  e5 {[%clk 0:02:58]} 7. Nb3 {[%clk 0:02:49]}  Be7 {[%clk 0:02:58]} 8. Be3 {[%clk 0:02:46]}  O-O {[%clk 0:02:58]} 9. g4 {[%clk 0:02:45]}  Nc6 {[%clk 0:02:21]} 10. g5 {[%clk 0:02:43]}  Nd7 {[%clk 0:02:21]} 11. Qd2 {[%clk 0:02:43]}  Nc5 {[%clk 0:02:19]} 12. O-O-O {[%clk 0:02:34]}  Nxb3+ {[%clk 0:02:17]} 13. axb3 {[%clk 0:02:34]}  Nd4 {[%clk 0:01:52]} 14. h4 {[%clk 0:02:31]}  Nxe2+ {[%clk 0:01:49]} 15. Qxe2 {[%clk 0:02:29]}  Be6 {[%clk 0:01:48]} 16. Kb1 {[%clk 0:02:26]}  Rc8 {[%clk 0:01:48]} 17. Nd5 {[%clk 0:02:17]}  Bxd5 {[%clk 0:01:46]} 18. Rxd5 {[%clk 0:02:10]}  f5 {[%clk 0:01:45]} 19. exf5 {[%clk 0:02:05]}  Rxf5 {[%clk 0:01:45]} 20. Rhd1 {[%clk 0:01:50]}  Qc7 {[%clk 0:01:40]} 21. c3 {[%clk 0:01:49]}  Rcf8 {[%clk 0:01:35]} 22. Qg4 {[%clk 0:01:35]}  Qc8 {[%clk 0:01:03]} 23. Qe4 {[%clk 0:01:28]}  Qe8 {[%clk 0:00:57]} 24. b4 {[%clk 0:01:24]}  Qa4 {[%clk 0:00:53]} 25. Qc2 {[%clk 0:01:20]}  Qc6 {[%clk 0:00:49]} 26. Qd3 {[%clk 0:01:16]}  g6 {[%clk 0:00:47]} 27. b5 {[%clk 0:01:16]}  axb5 {[%clk 0:00:47]} 28. Qxb5 {[%clk 0:01:16]}  Rf3 {[%clk 0:00:42]} 29. Qb3 {[%clk 0:01:09]}  Kg7 {[%clk 0:00:42]} 30. c4 {[%clk 0:00:51]}  Rh3 {[%clk 0:00:29]} 31. c5 {[%clk 0:00:49]}  dxc5 {[%clk 0:00:18]} 32. Rd7 {[%clk 0:00:49]}  Rf7 {[%clk 0:00:18]} 33. R1d6 {[%clk 0:00:47]}  Qe4+ {[%clk 0:00:17]} 34. Ka2 {[%clk 0:00:45]}  Rxh4 {[%clk 0:00:17]} 35. Qe6 {[%clk 0:00:42]}  Qa4+ {[%clk 0:00:16]} 36. Kb1 {[%clk 0:00:42]}  Rh1+ {[%clk 0:00:17]} 37. Bc1 {[%clk 0:00:41]}  Qe4+ {[%clk 0:00:15]} 38. Ka2 {[%clk 0:00:41]}  Rxc1 {[%clk 0:00:11]} 39. Qb3 {[%clk 0:00:32]}  Qb1+ {[%clk 0:00:07]} 40. Ka3 {[%clk 0:00:31]}  Qa1+ {[%clk 0:00:08]} 41. Qa2 {[%clk 0:00:31]}  Qxa2+ {[%clk 0:00:06]} 42. Kxa2 {[%clk 0:00:32]}  Bxd6 {[%clk 0:00:07]} 43. Rxd6 {[%clk 0:00:28]}  Rxf2 {[%clk 0:00:08]} 0-1


[Site "https://www.chess.com"]

[Event "Titled Tuesday Blitz August 1 Early 2023"]
[White "Weishaeutel, Moritz"]
[Black "Yonal, Timur"]
[WhiteFideId "12967300"]
[BlackFideId "44115725"]
[WhiteElo "2642"]
[BlackElo "2360"]
[Result "1-0"]
[Round "1"]
[TimeControl "180+1"]
[Date "2023.08.01"]
[WhiteClock "0:00:44"]
[BlackClock "0:00:00"]
[Board "144"]

1. e4 {[%clk 0:03:00]}  c5 {[%clk 0:02:59]} 2. d4 {[%clk 0:03:01]}  cxd4 {[%clk 0:02:58]} 3. c3 {[%clk 0:03:01]}  dxc3 {[%clk 0:02:58]} 4. Nxc3 {[%clk 0:03:02]}  e6 {[%clk 0:02:59]} 5. Nf3 {[%clk 0:03:03]}  a6 {[%clk 0:02:59]} 6. Bc4 {[%clk 0:03:03]}  Qc7 {[%clk 0:03:00]} 7. Bb3 {[%clk 0:03:01]}  b5 {[%clk 0:03:00]} 8. O-O {[%clk 0:03:01]}  Ne7 {[%clk 0:03:01]} 9. Re1 {[%clk 0:02:57]}  Ng6 {[%clk 0:02:53]} 10. Nd5 {[%clk 0:02:53]}  Qb7 {[%clk 0:02:52]} 11. Bg5 {[%clk 0:02:48]}  h6 {[%clk 0:02:45]} 12. Rc1 {[%clk 0:02:36]}  Nc6 {[%clk 0:02:27]} 13. Be3 {[%clk 0:02:27]}  a5 {[%clk 0:01:48]} 14. Bb6 {[%clk 0:02:20]}  Bd6 {[%clk 0:01:47]} 15. Be3 {[%clk 0:01:55]}  exd5 {[%clk 0:01:38]} 16. Qxd5 {[%clk 0:01:51]}  Bxh2+ {[%clk 0:01:25]} 17. Nxh2 {[%clk 0:01:51]}  O-O {[%clk 0:01:24]} 18. Qh5 {[%clk 0:01:44]}  Nce7 {[%clk 0:01:17]} 19. Ng4 {[%clk 0:01:41]}  a4 {[%clk 0:01:14]} 20. Bc2 {[%clk 0:01:34]}  d6 {[%clk 0:01:06]} 21. Bd4 {[%clk 0:01:15]}  Bxg4 {[%clk 0:00:33]} 22. Qxg4 {[%clk 0:01:16]}  Ne5 {[%clk 0:00:33]} 23. Qg3 {[%clk 0:01:14]}  N7c6 {[%clk 0:00:31]} 24. Be3 {[%clk 0:01:14]}  b4 {[%clk 0:00:30]} 25. Bxh6 {[%clk 0:01:14]}  Ng6 {[%clk 0:00:25]} 26. Be3 {[%clk 0:01:09]}  b3 {[%clk 0:00:25]} 27. axb3 {[%clk 0:01:09]}  axb3 {[%clk 0:00:25]} 28. Bxb3 {[%clk 0:01:08]}  Qxb3 {[%clk 0:00:15]} 29. Rxc6 {[%clk 0:01:09]}  Qxb2 {[%clk 0:00:16]} 30. Rxd6 {[%clk 0:01:09]}  Qb4 {[%clk 0:00:16]} 31. Rdd1 {[%clk 0:01:05]}  Qxe4 {[%clk 0:00:15]} 32. Bc5 {[%clk 0:01:05]}  Qc6 {[%clk 0:00:13]} 33. Bxf8 {[%clk 0:01:05]}  Kxf8 {[%clk 0:00:13]} 34. Qd6+ {[%clk 0:01:04]}  Qxd6 {[%clk 0:00:14]} 35. Rxd6 {[%clk 0:01:05]}  Kg8 {[%clk 0:00:13]} 36. Rd7 {[%clk 0:01:01]}  f6 {[%clk 0:00:10]} 37. Rc7 {[%clk 0:00:58]}  Ne5 {[%clk 0:00:09]} 38. f4 {[%clk 0:00:57]}  Ng6 {[%clk 0:00:04]} 39. g3 {[%clk 0:00:58]}  Ra2 {[%clk 0:00:02]} 40. Rd1 {[%clk 0:00:55]}  Kh7 {[%clk 0:00:02]} 41. Rdd7 {[%clk 0:00:54]}  Kh6 {[%clk 0:00:03]} 42. Rxg7 {[%clk 0:00:54]}  Kh5 {[%clk 0:00:03]} 43. g4+ {[%clk 0:00:45]}  Kh4 {[%clk 0:00:02]} 44. Rxg6 {[%clk 0:00:44]}  Kg3 {[%clk 0:00:00]} 45. Rc3+ {[%clk 0:00:44]} 1-0


[Site "https://www.chess.com"]

[Event "Titled Tuesday Blitz August 1 Early 2023"]
[White "Adury, Anant"]
[Black "Komov, Roman"]
[WhiteFideId "30964687"]
[BlackFideId "24175714"]
[WhiteElo "2352"]
[BlackElo "2636"]
[Result "1/2-1/2"]
[Round "1"]
[TimeControl "180+1"]
[Date "2023.08.01"]
[WhiteClock "0:00:07"]
[BlackClock "0:00:14"]
[Board "149"]

1. Nf3 {[%clk 0:02:59]}  Nf6 {[%clk 0:03:00]} 2. g3 {[%clk 0:02:59]}  b6 {[%clk 0:03:00]} 3. Bg2 {[%clk 0:03:00]}  Bb7 {[%clk 0:03:01]} 4. O-O {[%clk 0:03:00]}  e6 {[%clk 0:03:02]} 5. d3 {[%clk 0:03:00]}  d5 {[%clk 0:03:01]} 6. e4 {[%clk 0:02:57]}  dxe4 {[%clk 0:03:01]} 7. Nfd2 {[%clk 0:02:57]}  Be7 {[%clk 0:02:57]} 8. Nxe4 {[%clk 0:02:57]}  Qc8 {[%clk 0:02:58]} 9. Nxf6+ {[%clk 0:02:57]}  Bxf6 {[%clk 0:02:58]} 10. Nc3 {[%clk 0:02:58]}  Bxg2 {[%clk 0:02:57]} 11. Kxg2 {[%clk 0:02:58]}  O-O {[%clk 0:02:57]} 12. Ne4 {[%clk 0:02:56]}  Nd7 {[%clk 0:02:58]} 13. Nxf6+ {[%clk 0:02:56]}  Nxf6 {[%clk 0:02:59]} 14. Qf3 {[%clk 0:02:56]}  c5 {[%clk 0:02:57]} 15. Bg5 {[%clk 0:02:55]}  Nd5 {[%clk 0:02:57]} 16. h4 {[%clk 0:02:53]}  Qd7 {[%clk 0:02:54]} 17. a3 {[%clk 0:02:48]}  Rac8 {[%clk 0:02:53]} 18. Rae1 {[%clk 0:02:47]}  h6 {[%clk 0:02:52]} 19. Bd2 {[%clk 0:02:47]}  c4 {[%clk 0:02:49]} 20. dxc4 {[%clk 0:02:39]}  Rxc4 {[%clk 0:02:50]} 21. c3 {[%clk 0:02:40]}  Rd8 {[%clk 0:02:38]} 22. Bc1 {[%clk 0:02:40]}  Rc6 {[%clk 0:02:35]} 23. Rd1 {[%clk 0:02:40]}  Rd6 {[%clk 0:02:35]} 24. Kg1 {[%clk 0:02:38]}  b5 {[%clk 0:02:34]} 25. Rfe1 {[%clk 0:02:32]}  a6 {[%clk 0:02:31]} 26. Rd3 {[%clk 0:02:18]}  Nb6 {[%clk 0:02:23]} 27. Rxd6 {[%clk 0:02:14]}  Qxd6 {[%clk 0:02:24]} 28. Bf4 {[%clk 0:02:11]}  Qd5 {[%clk 0:02:19]} 29. Qxd5 {[%clk 0:01:57]}  Rxd5 {[%clk 0:02:20]} 30. Kf1 {[%clk 0:01:55]}  Nc4 {[%clk 0:02:18]} 31. Bc1 {[%clk 0:01:55]}  Kf8 {[%clk 0:02:15]} 32. Ke2 {[%clk 0:01:47]}  Ke7 {[%clk 0:02:13]} 33. Rd1 {[%clk 0:01:45]}  Kd6 {[%clk 0:02:10]} 34. f3 {[%clk 0:01:04]}  a5 {[%clk 0:02:00]} 35. b3 {[%clk 0:00:51]}  Nb6 {[%clk 0:01:50]} 36. Bf4+ {[%clk 0:00:47]}  e5 {[%clk 0:01:49]} 37. Be3 {[%clk 0:00:41]}  Rxd1 {[%clk 0:01:40]} 38. Kxd1 {[%clk 0:00:42]}  Nd5 {[%clk 0:01:40]} 39. Kd2 {[%clk 0:00:39]}  a4 {[%clk 0:01:37]} 40. bxa4 {[%clk 0:00:20]}  bxa4 {[%clk 0:01:36]} 41. Bf2 {[%clk 0:00:20]}  f5 {[%clk 0:01:19]} 42. c4 {[%clk 0:00:16]}  Ne7 {[%clk 0:01:18]} 43. Kd3 {[%clk 0:00:13]}  Nc6 {[%clk 0:01:17]} 44. g4 {[%clk 0:00:10]}  e4+ {[%clk 0:00:46]} 45. fxe4 {[%clk 0:00:10]}  Ne5+ {[%clk 0:00:21]} 46. Kd4 {[%clk 0:00:07]}  f4 {[%clk 0:00:07]} 47. c5+ {[%clk 0:00:06]}  Ke6 {[%clk 0:00:08]} 48. g5 {[%clk 0:00:06]}  hxg5 {[%clk 0:00:07]} 49. hxg5 {[%clk 0:00:07]}  Ng4 {[%clk 0:00:08]} 50. Bg1 {[%clk 0:00:05]}  f3 {[%clk 0:00:09]} 51. c6 {[%clk 0:00:05]}  f2 {[%clk 0:00:09]} 52. Bxf2 {[%clk 0:00:06]}  Nxf2 {[%clk 0:00:10]} 53. e5 {[%clk 0:00:06]}  Ng4 {[%clk 0:00:10]} 54. c7 {[%clk 0:00:04]}  Kd7 {[%clk 0:00:10]} 55. Ke4 {[%clk 0:00:03]}  Kxc7 {[%clk 0:00:10]} 56. Kf5 {[%clk 0:00:04]}  Ne3+ {[%clk 0:00:11]} 57. Kg6 {[%clk 0:00:05]}  Nc4 {[%clk 0:00:11]} 58. e6 {[%clk 0:00:04]}  Kd6 {[%clk 0:00:10]} 59. Kf7 {[%clk 0:00:04]}  Ne5+ {[%clk 0:00:11]} 60. Kxg7 {[%clk 0:00:05]}  Kxe6 {[%clk 0:00:12]} 61. Kf8 {[%clk 0:00:05]}  Kd5 {[%clk 0:00:11]} 62. Ke7 {[%clk 0:00:05]}  Kc4 {[%clk 0:00:12]} 63. Ke6 {[%clk 0:00:04]}  Ng6 {[%clk 0:00:11]} 64. Kf6 {[%clk 0:00:05]}  Nh4 {[%clk 0:00:12]} 65. Ke5 {[%clk 0:00:03]}  Kb3 {[%clk 0:00:12]} 66. Kf4 {[%clk 0:00:04]}  Kxa3 {[%clk 0:00:13]} 67. Kg4 {[%clk 0:00:05]}  Ng6 {[%clk 0:00:14]} 68. Kf5 {[%clk 0:00:05]}  Ne7+ {[%clk 0:00:13]} 69. Ke6 {[%clk 0:00:06]}  Ng6 {[%clk 0:00:13]} 70. Kf5 {[%clk 0:00:06]}  Nh4+ {[%clk 0:00:14]} 71. Kg4 {[%clk 0:00:06]}  Ng6 {[%clk 0:00:14]} 72. Kf5 {[%clk 0:00:07]} 1/2-1/2


[Site "https://www.chess.com"]

[Event "Titled Tuesday Blitz August 1 Early 2023"]
[White "Goswami, Vedant"]
[Black "Manukyan, Sargis A."]
[WhiteFideId "5003725"]
[BlackFideId "13303970"]
[WhiteElo "2351"]
[BlackElo "2634"]
[Result "0-1"]
[Round "1"]
[TimeControl "180+1"]
[Date "2023.08.01"]
[WhiteClock "0:00:14"]
[BlackClock "0:01:19"]
[Board "151"]

1. b3 {[%clk 0:02:58]}  d5 {[%clk 0:02:54]} 2. Bb2 {[%clk 0:02:56]}  e6 {[%clk 0:02:54]} 3. e4 {[%clk 0:02:53]}  dxe4 {[%clk 0:02:52]} 4. Nc3 {[%clk 0:02:52]}  Nf6 {[%clk 0:02:50]} 5. f3 {[%clk 0:02:50]}  exf3 {[%clk 0:02:45]} 6. Nxf3 {[%clk 0:02:48]}  Be7 {[%clk 0:02:44]} 7. Bd3 {[%clk 0:02:43]}  O-O {[%clk 0:02:43]} 8. Qe2 {[%clk 0:02:42]}  Nc6 {[%clk 0:02:35]} 9. a3 {[%clk 0:02:29]}  a5 {[%clk 0:02:31]} 10. O-O-O {[%clk 0:02:18]}  a4 {[%clk 0:02:27]} 11. b4 {[%clk 0:02:06]}  Nxb4 {[%clk 0:02:13]} 12. axb4 {[%clk 0:02:03]}  Bxb4 {[%clk 0:02:14]} 13. Ne4 {[%clk 0:02:00]}  Nd5 {[%clk 0:02:02]} 14. Neg5 {[%clk 0:01:54]}  h6 {[%clk 0:01:48]} 15. Nh7 {[%clk 0:01:38]}  a3 {[%clk 0:01:45]} 16. Ba1 {[%clk 0:01:28]}  a2 {[%clk 0:01:45]} 17. c3 {[%clk 0:01:21]}  Ba3+ {[%clk 0:01:41]} 18. Kc2 {[%clk 0:01:21]}  Bd7 {[%clk 0:01:41]} 19. Bb5 {[%clk 0:01:11]}  Kxh7 {[%clk 0:01:37]} 20. h4 {[%clk 0:01:05]}  Qe8 {[%clk 0:01:35]} 21. Ng5+ {[%clk 0:01:01]}  Kg8 {[%clk 0:01:31]} 22. c4 {[%clk 0:01:00]}  Bxb5 {[%clk 0:01:30]} 23. cxb5 {[%clk 0:00:58]}  Nb4+ {[%clk 0:01:30]} 24. Kb3 {[%clk 0:00:56]}  Qd7 {[%clk 0:01:25]} 25. Qe4 {[%clk 0:00:54]}  Qd3+ {[%clk 0:01:21]} 26. Qxd3 {[%clk 0:00:49]}  Nxd3 {[%clk 0:01:22]} 27. Ne4 {[%clk 0:00:46]}  f5 {[%clk 0:01:20]} 28. Nc3 {[%clk 0:00:33]}  Nf2 {[%clk 0:01:19]} 29. Rdf1 {[%clk 0:00:27]}  Nxh1 {[%clk 0:01:19]} 30. Rxh1 {[%clk 0:00:14]}  Bd6 {[%clk 0:01:19]} 0-1


[Site "https://www.chess.com"]

[Event "Titled Tuesday Blitz August 1 Early 2023"]
[White "Elissalt Cardenas, Hector"]
[Black "Iskusnyh, Sergei"]
[WhiteFideId "3500632"]
[BlackFideId "4120027"]
[WhiteElo "2340"]
[BlackElo "2629"]
[Result "0-1"]
[Round "1"]
[TimeControl "180+1"]
[Date "2023.08.01"]
[WhiteClock "0:00:14"]
[BlackClock "0:00:18"]
[Board "153"]

1. d4 {[%clk 0:02:59]}  d5 {[%clk 0:02:59]} 2. c4 {[%clk 0:02:59]}  c6 {[%clk 0:02:58]} 3. cxd5 {[%clk 0:02:57]}  cxd5 {[%clk 0:02:57]} 4. Bf4 {[%clk 0:02:57]}  Nf6 {[%clk 0:02:56]} 5. e3 {[%clk 0:02:55]}  Nc6 {[%clk 0:02:56]} 6. Bd3 {[%clk 0:02:46]}  Bg4 {[%clk 0:02:53]} 7. Ne2 {[%clk 0:02:40]}  e6 {[%clk 0:02:52]} 8. Qb3 {[%clk 0:02:34]}  Bb4+ {[%clk 0:02:37]} 9. Nbc3 {[%clk 0:02:30]}  O-O {[%clk 0:02:36]} 10. O-O {[%clk 0:02:27]}  a6 {[%clk 0:02:16]} 11. Rac1 {[%clk 0:02:18]}  Bd6 {[%clk 0:01:54]} 12. f3 {[%clk 0:02:16]}  Bh5 {[%clk 0:01:52]} 13. Na4 {[%clk 0:02:16]}  Na5 {[%clk 0:01:45]} 14. Qb6 {[%clk 0:02:06]}  Qxb6 {[%clk 0:01:17]} 15. Nxb6 {[%clk 0:02:05]}  Rad8 {[%clk 0:01:18]} 16. Bxd6 {[%clk 0:01:09]}  Rxd6 {[%clk 0:01:17]} 17. Nc8 {[%clk 0:01:10]}  Rd7 {[%clk 0:01:08]} 18. Nb6 {[%clk 0:01:08]}  Rd6 {[%clk 0:01:06]} 19. Nc8 {[%clk 0:01:07]}  Rdd8 {[%clk 0:01:03]} 20. Ne7+ {[%clk 0:01:04]}  Kh8 {[%clk 0:01:02]} 21. b4 {[%clk 0:01:01]}  Nc4 {[%clk 0:00:59]} 22. Bxc4 {[%clk 0:01:00]}  dxc4 {[%clk 0:00:59]} 23. Nf4 {[%clk 0:00:50]}  b5 {[%clk 0:00:52]} 24. Nc6 {[%clk 0:00:50]}  Rc8 {[%clk 0:00:40]} 25. Ne5 {[%clk 0:00:47]}  Bg6 {[%clk 0:00:38]} 26. e4 {[%clk 0:00:45]}  Kg8 {[%clk 0:00:37]} 27. Kf2 {[%clk 0:00:43]}  Rfd8 {[%clk 0:00:37]} 28. Ke3 {[%clk 0:00:43]}  Nd7 {[%clk 0:00:37]} 29. Nxd7 {[%clk 0:00:39]}  Rxd7 {[%clk 0:00:37]} 30. Rc3 {[%clk 0:00:39]}  Rcd8 {[%clk 0:00:37]} 31. Rd1 {[%clk 0:00:39]}  e5 {[%clk 0:00:34]} 32. Nd5 {[%clk 0:00:38]}  exd4+ {[%clk 0:00:34]} 33. Rxd4 {[%clk 0:00:38]}  f5 {[%clk 0:00:34]} 34. Ne7+ {[%clk 0:00:34]}  Kf7 {[%clk 0:00:32]} 35. Rxd7 {[%clk 0:00:34]}  Rxd7 {[%clk 0:00:31]} 36. Nd5 {[%clk 0:00:28]}  fxe4 {[%clk 0:00:30]} 37. fxe4 {[%clk 0:00:27]}  Ke6 {[%clk 0:00:29]} 38. Kd4 {[%clk 0:00:27]}  Bxe4 {[%clk 0:00:28]} 39. Kxe4 {[%clk 0:00:26]}  Rxd5 {[%clk 0:00:28]} 40. Ra3 {[%clk 0:00:26]}  Rd6 {[%clk 0:00:27]} 41. g4 {[%clk 0:00:25]}  g5 {[%clk 0:00:26]} 42. h3 {[%clk 0:00:25]}  Kd7 {[%clk 0:00:20]} 43. Ke5 {[%clk 0:00:24]}  Rc6 {[%clk 0:00:19]} 44. Kd5 {[%clk 0:00:14]}  c3 {[%clk 0:00:18]} 0-1


[Site "https://www.chess.com"]

[Event "Titled Tuesday Blitz August 1 Early 2023"]
[White "Vantika Agrawal"]
[Black "Hercegovac, Neven"]
[WhiteFideId "25050389"]
[BlackFideId "2839135"]
[WhiteElo "2619"]
[BlackElo "2335"]
[Result "1-0"]
[Round "1"]
[TimeControl "180+1"]
[Date "2023.08.01"]
[WhiteClock "0:00:28"]
[BlackClock "0:00:52"]
[Board "160"]

1. e4 {[%clk 0:02:59]}  e6 {[%clk 0:02:58]} 2. d4 {[%clk 0:02:59]}  d5 {[%clk 0:02:56]} 3. Nc3 {[%clk 0:02:57]}  Nf6 {[%clk 0:02:56]} 4. e5 {[%clk 0:02:57]}  Nfd7 {[%clk 0:02:55]} 5. f4 {[%clk 0:02:56]}  c5 {[%clk 0:02:47]} 6. Nf3 {[%clk 0:02:55]}  Nc6 {[%clk 0:02:47]} 7. Be3 {[%clk 0:02:55]}  cxd4 {[%clk 0:02:44]} 8. Nxd4 {[%clk 0:02:55]}  Qb6 {[%clk 0:02:40]} 9. Qd2 {[%clk 0:02:54]}  Qxb2 {[%clk 0:02:36]} 10. Rb1 {[%clk 0:02:45]}  Qa3 {[%clk 0:02:35]} 11. Bb5 {[%clk 0:02:20]}  Nxd4 {[%clk 0:02:35]} 12. Bxd4 {[%clk 0:02:19]}  a6 {[%clk 0:02:34]} 13. Bxd7+ {[%clk 0:02:14]}  Bxd7 {[%clk 0:02:35]} 14. Rb3 {[%clk 0:02:13]}  Qe7 {[%clk 0:02:35]} 15. Rxb7 {[%clk 0:02:07]}  Rc8 {[%clk 0:02:35]} 16. O-O {[%clk 0:02:00]}  Qd8 {[%clk 0:02:35]} 17. Rfb1 {[%clk 0:01:39]}  Bc5 {[%clk 0:02:30]} 18. Bxc5 {[%clk 0:01:31]}  Rxc5 {[%clk 0:02:31]} 19. Ne2 {[%clk 0:00:59]}  Bb5 {[%clk 0:01:16]} 20. Nd4 {[%clk 0:00:58]}  Bc4 {[%clk 0:01:16]} 21. Rb8 {[%clk 0:00:51]}  Rc8 {[%clk 0:01:15]} 22. Nc6 {[%clk 0:00:50]}  Rxc6 {[%clk 0:01:05]} 23. Rxd8+ {[%clk 0:00:50]}  Kxd8 {[%clk 0:01:06]} 24. Rb8+ {[%clk 0:00:47]}  Rc8 {[%clk 0:01:06]} 25. Qa5+ {[%clk 0:00:46]}  Kd7 {[%clk 0:01:07]} 26. Rb7+ {[%clk 0:00:44]}  Ke8 {[%clk 0:01:07]} 27. Qb6 {[%clk 0:00:32]}  Kf8 {[%clk 0:00:56]} 28. Qd6+ {[%clk 0:00:29]}  Kg8 {[%clk 0:00:52]} 29. Rb8 {[%clk 0:00:28]} 1-0


[Site "https://www.chess.com"]

[Event "Titled Tuesday Blitz August 1 Early 2023"]
[White "Prydun, Andriy"]
[Black "brm72"]
[WhiteFideId "14145898"]
[WhiteElo "2332"]
[BlackElo "2619"]
[Result "1-0"]
[Round "1"]
[TimeControl "180+1"]
[Date "2023.08.01"]
[WhiteClock "0:00:06"]
[BlackClock "0:00:05"]
[Board "161"]

1. e4 {[%clk 0:02:57]}  c6 {[%clk 0:02:58]} 2. d4 {[%clk 0:02:55]}  d5 {[%clk 0:02:59]} 3. e5 {[%clk 0:02:56]}  c5 {[%clk 0:03:00]} 4. b4 {[%clk 0:02:55]}  cxd4 {[%clk 0:02:56]} 5. Qxd4 {[%clk 0:02:56]}  Nc6 {[%clk 0:02:53]} 6. Qb2 {[%clk 0:02:57]}  a6 {[%clk 0:02:33]} 7. a4 {[%clk 0:02:53]}  e6 {[%clk 0:02:30]} 8. b5 {[%clk 0:02:42]}  Na5 {[%clk 0:02:07]} 9. Nf3 {[%clk 0:02:39]}  Bc5 {[%clk 0:02:07]} 10. Bd3 {[%clk 0:02:30]}  Ne7 {[%clk 0:02:07]} 11. O-O {[%clk 0:02:29]}  O-O {[%clk 0:02:07]} 12. Be3 {[%clk 0:01:42]}  Bxe3 {[%clk 0:01:43]} 13. fxe3 {[%clk 0:01:43]}  Nc4 {[%clk 0:01:42]} 14. Bxc4 {[%clk 0:01:36]}  dxc4 {[%clk 0:01:43]} 15. Nbd2 {[%clk 0:01:24]}  Nd5 {[%clk 0:00:56]} 16. Nxc4 {[%clk 0:01:22]}  Qc7 {[%clk 0:00:44]} 17. Qb3 {[%clk 0:01:22]}  axb5 {[%clk 0:00:44]} 18. axb5 {[%clk 0:01:21]}  Bd7 {[%clk 0:00:43]} 19. Rxa8 {[%clk 0:01:06]}  Rxa8 {[%clk 0:00:44]} 20. Ng5 {[%clk 0:01:06]}  Qc5 {[%clk 0:00:19]} 21. Qd3 {[%clk 0:00:59]}  g6 {[%clk 0:00:10]} 22. Rxf7 {[%clk 0:00:45]}  Bxb5 {[%clk 0:00:06]} 23. Rxh7 {[%clk 0:00:44]}  Ra1+ {[%clk 0:00:07]} 24. Kf2 {[%clk 0:00:43]}  Qf8+ {[%clk 0:00:06]} 25. Kg3 {[%clk 0:00:36]}  Qf5 {[%clk 0:00:06]} 26. Qxf5 {[%clk 0:00:31]}  exf5 {[%clk 0:00:07]} 27. Nd6 {[%clk 0:00:30]}  Bc6 {[%clk 0:00:08]} 28. Rf7 {[%clk 0:00:07]}  Nxe3 {[%clk 0:00:06]} 29. Rf6 {[%clk 0:00:07]}  Nxg2 {[%clk 0:00:04]} 30. Rxg6+ {[%clk 0:00:07]}  Kf8 {[%clk 0:00:05]} 31. Rf6+ {[%clk 0:00:06]}  Ke7 {[%clk 0:00:05]} 32. Rf7+ {[%clk 0:00:06]}  Kd8 {[%clk 0:00:05]} 33. Ne6# {[%clk 0:00:06]} 1-0


[Site "https://www.chess.com"]

[Event "Titled Tuesday Blitz August 1 Early 2023"]
[White "Nosacheva, Mariya"]
[Black "Guerra Tulcan, Lenin"]
[WhiteFideId "34111422"]
[BlackFideId "3601382"]
[WhiteElo "2329"]
[BlackElo "2618"]
[Result "0-1"]
[Round "1"]
[TimeControl "180+1"]
[Date "2023.08.01"]
[WhiteClock "0:02:45"]
[BlackClock "0:02:59"]
[Board "163"]

1. e4 {[%clk 0:03:00]}  c5 {[%clk 0:03:00]} 2. Nf3 {[%clk 0:02:59]}  e6 {[%clk 0:03:00]} 3. d4 {[%clk 0:02:58]}  cxd4 {[%clk 0:03:01]} 4. Nxd4 {[%clk 0:02:59]}  Nc6 {[%clk 0:03:01]} 5. Nb5 {[%clk 0:02:58]}  Nf6 {[%clk 0:03:00]} 6. N1c3 {[%clk 0:02:59]}  Bb4 {[%clk 0:02:59]} 7. a3 {[%clk 0:02:58]}  Bxc3+ {[%clk 0:02:59]} 8. Nxc3 {[%clk 0:02:59]}  d5 {[%clk 0:02:59]} 9. exd5 {[%clk 0:02:57]}  exd5 {[%clk 0:03:00]} 10. Nxd5 {[%clk 0:02:45]}  Qxd5 {[%clk 0:02:59]} 0-1


[Site "https://www.chess.com"]

[Event "Titled Tuesday Blitz August 1 Early 2023"]
[White "Pham, Le Thao Nguyen"]
[Black "Acikel, Mert"]
[WhiteFideId "12401226"]
[BlackFideId "12956465"]
[WhiteElo "2615"]
[BlackElo "2328"]
[Result "1-0"]
[Round "1"]
[TimeControl "180+1"]
[Date "2023.08.01"]
[WhiteClock "0:00:10"]
[BlackClock "0:00:06"]
[Board "164"]

1. d4 {[%clk 0:02:56]}  d5 {[%clk 0:02:57]} 2. c4 {[%clk 0:02:56]}  e6 {[%clk 0:02:57]} 3. Nf3 {[%clk 0:02:55]}  Nf6 {[%clk 0:02:57]} 4. Nc3 {[%clk 0:02:55]}  Be7 {[%clk 0:02:57]} 5. Bf4 {[%clk 0:02:54]}  O-O {[%clk 0:02:54]} 6. e3 {[%clk 0:02:54]}  Nbd7 {[%clk 0:02:54]} 7. Qc2 {[%clk 0:02:54]}  c5 {[%clk 0:02:50]} 8. Rd1 {[%clk 0:02:53]}  b6 {[%clk 0:02:40]} 9. a3 {[%clk 0:02:32]}  Bb7 {[%clk 0:02:38]} 10. cxd5 {[%clk 0:02:27]}  exd5 {[%clk 0:02:37]} 11. Bd3 {[%clk 0:02:24]}  Rc8 {[%clk 0:02:32]} 12. O-O {[%clk 0:02:23]}  a6 {[%clk 0:02:25]} 13. dxc5 {[%clk 0:02:14]}  bxc5 {[%clk 0:02:13]} 14. Bf5 {[%clk 0:02:14]}  d4 {[%clk 0:02:00]} 15. Ne4 {[%clk 0:02:00]}  Nxe4 {[%clk 0:01:34]} 16. Bxe4 {[%clk 0:02:00]}  Bxe4 {[%clk 0:01:35]} 17. Qxe4 {[%clk 0:02:00]}  Nf6 {[%clk 0:01:28]} 18. Qe5 {[%clk 0:01:44]}  Nd5 {[%clk 0:01:07]} 19. exd4 {[%clk 0:01:34]}  Bf6 {[%clk 0:01:06]} 20. Qf5 {[%clk 0:01:33]}  g6 {[%clk 0:01:04]} 21. Qg4 {[%clk 0:01:32]}  Nxf4 {[%clk 0:00:53]} 22. Qxf4 {[%clk 0:01:33]}  cxd4 {[%clk 0:00:54]} 23. Rd3 {[%clk 0:01:33]}  Rc2 {[%clk 0:00:47]} 24. b4 {[%clk 0:01:25]}  Qb6 {[%clk 0:00:43]} 25. Rfd1 {[%clk 0:01:25]}  Rfc8 {[%clk 0:00:36]} 26. h4 {[%clk 0:01:25]}  h5 {[%clk 0:00:34]} 27. Qe4 {[%clk 0:01:03]}  Rc1 {[%clk 0:00:19]} 28. g3 {[%clk 0:01:02]}  Bg7 {[%clk 0:00:18]} 29. Ng5 {[%clk 0:00:58]}  Qf6 {[%clk 0:00:18]} 30. Rxc1 {[%clk 0:00:42]}  Rxc1+ {[%clk 0:00:17]} 31. Kg2 {[%clk 0:00:43]}  Rc3 {[%clk 0:00:18]} 32. Qa8+ {[%clk 0:00:39]}  Bf8 {[%clk 0:00:17]} 33. Ne4 {[%clk 0:00:22]}  Qe5 {[%clk 0:00:13]} 34. Nxc3 {[%clk 0:00:21]}  dxc3 {[%clk 0:00:13]} 35. Qc6 {[%clk 0:00:22]}  Bg7 {[%clk 0:00:12]} 36. Rd8+ {[%clk 0:00:20]}  Kh7 {[%clk 0:00:12]} 37. Rc8 {[%clk 0:00:20]}  Qf5 {[%clk 0:00:11]} 38. Qf3 {[%clk 0:00:20]}  Qb1 {[%clk 0:00:10]} 39. Qe2 {[%clk 0:00:18]}  Qb2 {[%clk 0:00:08]} 40. Qxa6 {[%clk 0:00:13]}  c2 {[%clk 0:00:08]} 41. Qc6 {[%clk 0:00:13]}  Qxa3 {[%clk 0:00:04]} 42. Qxc2 {[%clk 0:00:10]}  Qxb4 {[%clk 0:00:05]} 43. Rc7 {[%clk 0:00:10]}  Qd6 {[%clk 0:00:04]} 44. Rxf7 {[%clk 0:00:09]}  Qd5+ {[%clk 0:00:05]} 45. Rf3 {[%clk 0:00:09]}  Bf6 {[%clk 0:00:05]} 46. Qd3 {[%clk 0:00:10]}  Bg7 {[%clk 0:00:06]} 47. Qxd5 {[%clk 0:00:10]} 1-0


[Site "https://www.chess.com"]